lending/lending_fUSD_20250501
["ID","MTS","AMOUNT","RATE_DAILY","PERIOD"]
[359560090,1746124252516,-151.0,0.000349,7]
[359560091,1746124252528,-151.0,0.000349,7]
[359560092,1746124252539,-513.870771,0.000349,7]
[359560093,1746124252550,-513.870771,0.000349,7]
[359560094,1746124252561,-151.0,0.000349,7]
[359560095,1746124252571,-278.947231,0.000349,7]
[359560096,1746124252581,-151.0,0.000349,7]
[359560097,1746124252591,-151.0,0.000349,7]
[359560098,1746124252601,-151.0,0.000349,7]
[359560099,1746124252611,-326.680385,0.000349,7]
[359560100,1746124252621,-151.0,0.000349,7]
[359560101,1746124252632,-326.680385,0.000349,7]
[359560102,1746124252642,-151.0,0.000349,7]
[359560103,1746124252652,-151.0,0.000349,7]
[359560104,1746124252662,-151.0,0.000349,7]
[359560105,1746124252673,-160.325611,0.000349,7]
[359560106,1746124252683,-160.325611,0.000349,7]
[359560107,1746124252693,-391.468518,0.000349,7]
[359560108,1746124252704,-539.966518,0.000349,7]
[359560109,1746124252715,-539.966518,0.000349,7]
[359560110,1746124252725,-151.0,0.000349,7]
[359560111,1746124252735,-151.0,0.000349,7]
[359560112,1746124252746,-151.0,0.000349,7]
[359560113,1746124252757,-1348.660206,0.000349,7]
[359560114,1746124252767,-1348.660206,0.000349,7]
[359560115,1746124252777,-151.0,0.000349,7]
[359560116,1746124252787,-151.0,0.000349,7]
[359560117,1746124252799,-199.703088,0.000349,7]
[359560118,1746124252809,-199.703088,0.000349,7]
[359560119,1746124252819,-579.520594,0.000349,7]
[359560120,1746124252829,-579.520594,0.000349,7]
[359560121,1746124252839,-175.431605,0.000349,7]
[359560122,1746124252850,-175.431605,0.000349,7]
[359560123,1746124252860,-151.0,0.000349,7]
[359560124,1746124252871,-203.267613,0.000349,7]
[359560125,1746124252881,-203.267613,0.000349,7]
[359560126,1746124252892,-151.0,0.000349,7]
[359560127,1746124252901,-150.0,0.00034922,60]
[359560128,1746124252911,-42326.55731167,0.0003498,2]
[359560129,1746124252921,-150.0,0.00034999,3]
[359560130,1746124252932,-1000.0,0.00035,120]
[359560131,1746124252943,-107267.66935782,0.00035,2]
[359560132,1746124252954,-1826.02065796,0.00035,120]
[359560133,1746124252965,-152.97203691,0.00035,2]
[359560134,1746124252975,-16124.2,0.00035,15]
[359560135,1746124252986,-151.0,0.00035,7]
[359560136,1746124252996,-1227.843594,0.00035,7]
[359560137,1746124253006,-359.65006695,0.00035,7]
[359560138,1746124253016,-59892.29881476,0.00035,2]
[359560139,1746124253026,-2000.0,0.00035,30]
[359560140,1746124253036,-10000.0,0.00035,5]
[359560141,1746124253047,-248.687854,0.00035069,7]
[359560142,1746124253056,-752.3,0.00035096,2]
[359560143,1746124253066,-166.66,0.00035113,2]
[359560144,1746124253076,-308.94,0.00035121,2]
[359560145,1746124253087,-275.9853488,0.00035242,7]
[359560146,1746124253096,-283.12339316,0.00035339,2]
[359560147,1746124253106,-299.84456601,0.0003538,2]
[359560148,1746124253119,-1688.56472798,0.0003538,2]
[359560149,1746124253129,-4517.29295089,0.0003538,2]
[359560150,1746124253139,-4888.60330222,0.0003538,2]
[359560151,1746124253149,-238.0,0.0003542,2]
[359560152,1746124253160,-248.51,0.000355,14]
[359560153,1746124253170,-269.022701,0.0003554,7]
[359560154,1746124253181,-700.0,0.000356,3]
[359560155,1746124253194,-151.0,0.000356,7]
[359560156,1746124253204,-151.0,0.000356,7]
[359560157,1746124253214,-151.0,0.000356,7]
[359560158,1746124253225,-151.0,0.000356,7]
[359560159,1746124253235,-151.0,0.000356,7]
[359560160,1746124253246,-151.0,0.000356,7]
[359560161,1746124253258,-500.0,0.00035615,10]
[359560162,1746124253268,-500.0,0.00035615,10]
[359560163,1746124253278,-150.0,0.00035615,3]
[359560164,1746124253289,-150.0,0.00035615,3]
[359560165,1746124253299,-150.0,0.00035615,3]
[359560166,1746124253309,-216195.75,0.00035616,7]
[359560167,1746124253319,-548.78468604,0.00035616,11]
[359560168,1746124253330,-537.60165732,0.00035616,11]
[359560169,1746124253340,-992.28,0.00035616,2]
[359560170,1746124253350,-1527.18,0.00035616,11]
[359560171,1746124253360,-493.89,0.00035616,11]
[359560172,1746124253369,-452.01,0.00035616,11]
[359560173,1746124253381,-663.7,0.00035616,11]
[359560174,1746124253391,-800.98,0.00035616,11]
[359560175,1746124253401,-168.954548,0.00035616,11]
[359560176,1746124253411,-151.0,0.00035616,7]
[359560177,1746124253421,-151.0,0.00035616,7]
[359560178,1746124253431,-164.833706,0.00035616,11]
[359560179,1746124253440,-170.779891,0.00035616,11]
[359560180,1746124253450,-168.042911,0.00035616,11]
[359560181,1746124253460,-1076.410288,0.00035616,11]
[359560182,1746124253470,-164.833711,0.00035616,11]
[359560183,1746124253480,-168.954548,0.00035616,11]
[359560184,1746124253490,-164.833706,0.00035616,11]
[359560185,1746124253500,-164.833706,0.00035616,11]
[359560186,1746124253510,-164.833705,0.00035616,11]
[359560187,1746124253520,-395.04360313,0.00035616,11]
[359560188,1746124253530,-1227.843596,0.00035616,7]
[359560189,1746124253539,-527.03746342,0.00035616,11]
[359560190,1746124253549,-450.0,0.00035616,11]
[359560191,1746124253559,-500.0,0.00035616,11]
[359560192,1746124253569,-450.0,0.00035616,5]
[359560193,1746124253579,-450.0,0.00035616,11]
[359560194,1746124253589,-553.33234687,0.00035616,11]
[359560195,1746124253599,-536.69199354,0.00035616,11]
[359560196,1746124253610,-500.0,0.00035616,11]
[359560197,1746124253878,-521.19242193,0.00035616,11]
[359560198,1746124253916,-450.0,0.00035616,2]
[359560199,1746124253926,-450.0,0.00035616,3]
[359560200,1746124253937,-450.0,0.00035616,11]
[359560201,1746124253946,-450.0,0.00035616,11]
[359560202,1746124253956,-450.0,0.00035616,11]
[359560203,1746124253965,-498.933316,0.00035616,11]
[359560204,1746124253974,-568.11555352,0.00035616,11]
[359560205,1746124253984,-547.51083268,0.00035616,11]
[359560206,1746124253993,-482.43590898,0.00035616,11]
[359560207,1746124254002,-450.0,0.00035616,11]
[359560208,1746124254011,-164.833706,0.00035616,11]
[359560209,1746124254021,-450.0,0.00035616,11]
[359560210,1746124254030,-450.0,0.00035616,11]
[359560211,1746124254039,-450.0,0.00035616,11]
[359560212,1746124254049,-509.0398983,0.00035616,11]
[359560213,1746124254058,-335.26860326,0.00035616,11]
[359560214,1746124254067,-450.0,0.00035616,11]
[359560215,1746124254077,-450.0,0.00035616,11]
[359560216,1746124254086,-450.0,0.00035616,11]
[359560217,1746124254095,-450.0,0.00035616,11]
[359560218,1746124254105,-359.66404515,0.00035616,11]
[359560219,1746124254115,-450.0,0.00035616,5]
[359560220,1746124254125,-471.02385873,0.00035616,11]
[359560221,1746124254134,-450.0,0.00035616,11]
[359560222,1746124254143,-470.93033745,0.00035616,11]
[359560223,1746124254152,-513.05546381,0.00035616,11]
[359560224,1746124254162,-450.0,0.00035616,11]
[359560225,1746124254171,-450.0,0.00035616,11]
[359560226,1746124254180,-450.0,0.00035616,11]
[359560227,1746124254193,-450.0,0.00035616,11]
[359560228,1746124254203,-450.0,0.00035616,11]
[359560229,1746124254212,-450.0,0.00035616,11]
[359560230,1746124254222,-450.0,0.00035616,11]
[359560231,1746124254231,-450.0,0.00035616,11]
[359560232,1746124254240,-509.11515123,0.00035616,11]
[359560233,1746124254249,-450.0,0.00035616,11]
[359560234,1746124254259,-450.0,0.00035616,11]
[359560235,1746124254268,-467.56567161,0.00035616,11]
[359560236,1746124254277,-450.0,0.00035616,11]
[359560237,1746124254286,-450.0,0.00035616,11]
[359560238,1746124254295,-450.0,0.00035616,11]
[359560239,1746124254305,-450.0,0.00035616,11]
[359560240,1746124254315,-967.82,0.00035616,11]
[359560241,1746124254324,-450.0,0.00035616,11]
[359560242,1746124254333,-500.0,0.00035616,11]
[359560243,1746124254344,-500.0,0.00035616,11]
[359560244,1746124254353,-500.0,0.00035616,11]
[359560245,1746124254363,-305.15729694,0.00035616,11]
[359560246,1746124254372,-450.0,0.00035616,11]
[359560247,1746124254382,-450.0,0.00035616,11]
[359560248,1746124254391,-450.0,0.00035616,11]
[359560249,1746124254401,-533.18345586,0.00035616,11]
[359560250,1746124254411,-583.14,0.00035616,11]
[359560251,1746124254421,-450.0,0.00035616,11]
[359560252,1746124254431,-450.0,0.00035616,11]
[359560253,1746124254440,-450.0,0.00035616,11]
[359560254,1746124254449,-450.0,0.00035616,11]
[359560255,1746124254459,-450.0,0.00035616,11]
[359560256,1746124254468,-450.0,0.00035616,11]
[359560257,1746124254478,-450.0,0.00035616,11]
[359560258,1746124254487,-450.0,0.00035616,11]
[359560259,1746124254497,-450.0,0.00035616,11]
[359560260,1746124254506,-450.0,0.00035616,11]
[359560261,1746124254515,-450.0,0.00035616,11]
[359560262,1746124254525,-450.0,0.00035616,11]
[359560263,1746124254535,-1070.19,0.00035616,11]
[359560264,1746124254545,-829.43,0.00035616,11]
[359560265,1746124254554,-450.0,0.00035616,11]
[359560266,1746124254564,-579.70432599,0.00035616,11]
[359560267,1746124254574,-450.0,0.00035616,11]
[359560268,1746124254584,-450.0,0.00035616,11]
[359560269,1746124254594,-450.0,0.00035616,11]
[359560270,1746124254603,-450.0,0.00035616,11]
[359560271,1746124254613,-453.89,0.00035616,11]
[359560272,1746124254623,-591.6,0.00035616,11]
[359560273,1746124254633,-162.28,0.00035616,2]
[359560274,1746124254642,-450.0,0.00035616,11]
[359560275,1746124254651,-450.0,0.00035616,11]
[359560276,1746124254661,-450.0,0.00035616,11]
[359560277,1746124254671,-450.0,0.00035616,11]
[359560278,1746124254680,-881.37,0.00035616,11]
[359560279,1746124254689,-563.38525077,0.00035616,11]
[359560280,1746124254698,-450.0,0.00035616,11]
[359560281,1746124254707,-549.58439104,0.00035616,11]
[359560282,1746124254717,-450.0,0.00035616,11]
[359560283,1746124254727,-598.13598016,0.00035616,11]
[359560284,1746124254736,-450.0,0.00035616,11]
[359560285,1746124254745,-450.0,0.00035616,11]
[359560286,1746124254755,-493.33,0.00035616,11]
[359560287,1746124254764,-450.0,0.00035616,11]
[359560288,1746124254773,-450.0,0.00035616,11]
[359560289,1746124254783,-450.0,0.00035616,11]
[359560290,1746124254793,-450.0,0.00035616,11]
[359560291,1746124254807,-450.0,0.00035616,11]
[359560292,1746124254817,-450.0,0.00035616,11]
[359560293,1746124254826,-450.0,0.00035616,7]
[359560294,1746124254835,-450.0,0.00035616,11]
[359560295,1746124254845,-450.0,0.00035616,11]
[359560296,1746124254855,-450.0,0.00035616,11]
[359560297,1746124254865,-168.954548,0.00035616,11]
[359560298,1746124254875,-450.0,0.00035616,11]
[359560299,1746124254885,-282.21921785,0.00035616,11]
[359560300,1746124254896,-450.0,0.00035616,11]
[359560301,1746124254907,-450.0,0.00035616,11]
[359560302,1746124254916,-700.0,0.00035616,120]
[359560303,1746124254926,-700.0,0.00035616,120]
[359560304,1746124254936,-450.0,0.00035616,11]
[359560305,1746124254945,-700.0,0.00035616,120]
[359560306,1746124254954,-450.0,0.00035616,11]
[359560307,1746124254965,-700.0,0.00035616,120]
[359560308,1746124254975,-700.0,0.00035616,120]
[359560309,1746124254984,-450.0,0.00035616,11]
[359560310,1746124254993,-700.0,0.00035616,120]
[359560311,1746124255003,-450.0,0.00035616,11]
[359560312,1746124255012,-700.0,0.00035616,120]
[359560313,1746124255022,-700.0,0.00035616,120]
[359560314,1746124255032,-450.0,0.00035616,11]
[359560315,1746124255042,-700.0,0.00035616,120]
[359560316,1746124255051,-700.0,0.00035616,120]
[359560317,1746124255060,-700.0,0.00035616,120]
[359560318,1746124255070,-154.71692526,0.00035616,120]
[359560319,1746124255079,-450.0,0.00035616,11]
[359560320,1746124255089,-562.86992183,0.00035616,11]
[359560321,1746124255099,-450.0,0.00035616,11]
[359560322,1746124255108,-450.0,0.00035616,11]
[359560323,1746124255120,-407.48525331,0.00035616,11]
[359560324,1746124255130,-597.87999187,0.00035616,11]
[359560325,1746124255139,-450.0,0.00035616,11]
[359560326,1746124255149,-450.0,0.00035616,11]
[359560327,1746124255159,-450.0,0.00035616,11]
[359560328,1746124255169,-519.72440534,0.00035616,11]
[359560329,1746124255179,-537.80587381,0.00035616,11]
[359560330,1746124255190,-450.0,0.00035616,11]
[359560331,1746124255199,-450.0,0.00035616,11]
[359560332,1746124255209,-450.0,0.00035616,11]
[359560333,1746124255219,-591.49711274,0.00035616,11]
[359560334,1746124255229,-510.37400157,0.00035616,11]
[359560335,1746124255239,-450.0,0.00035616,11]
[359560336,1746124255248,-568.22430187,0.00035616,11]
[359560337,1746124255258,-450.0,0.00035616,11]
[359560338,1746124255267,-450.0,0.00035616,11]
[359560339,1746124255277,-450.0,0.00035616,11]
[359560340,1746124255287,-684.84,0.00035616,11]
[359560341,1746124255296,-450.0,0.00035616,11]
[359560342,1746124255307,-170.2422584,0.00035616,11]
[359560343,1746124255316,-535.72832041,0.00035616,11]
[359560344,1746124255327,-450.0,0.00035616,11]
[359560345,1746124255336,-450.0,0.00035616,11]
[359560346,1746124255345,-773.04,0.00035616,11]
[359560347,1746124255356,-669.26,0.00035616,11]
[359560348,1746124255365,-366.55369335,0.00035616,11]
[359560349,1746124255375,-450.0,0.00035616,11]
[359560350,1746124255384,-450.0,0.00035616,11]
[359560351,1746124255395,-458.77,0.00035616,11]
[359560352,1746124255404,-603.7,0.00035616,11]
[359560353,1746124255415,-450.0,0.00035616,11]
[359560354,1746124255425,-546.27689705,0.00035616,11]
[359560355,1746124255435,-450.0,0.00035616,11]
[359560356,1746124255445,-547.73,0.00035616,11]
[359560357,1746124255455,-596.80380541,0.00035616,11]
[359560358,1746124255466,-346.33,0.00035616,11]
[359560359,1746124255477,-450.0,0.00035616,11]
[359560360,1746124255490,-450.0,0.00035616,11]
[359560361,1746124255500,-608.99,0.00035616,11]
[359560362,1746124255512,-450.0,0.00035616,11]
[359560363,1746124255523,-450.0,0.00035616,11]
[359560364,1746124255532,-450.0,0.00035616,11]
[359560365,1746124255542,-450.0,0.00035616,11]
[359560366,1746124255553,-450.0,0.00035616,11]
[359560367,1746124255564,-506.89998841,0.00035616,11]
[359560368,1746124255573,-450.0,0.00035616,11]
[359560369,1746124255584,-450.0,0.00035616,11]
[359560370,1746124255594,-498.8,0.00035616,11]
[359560371,1746124255604,-509.6376372,0.00035616,11]
[359560372,1746124255613,-1200.55,0.00035616,120]
[359560373,1746124255623,-758.27,0.00035616,11]
[359560374,1746124255633,-450.0,0.00035616,11]
[359560375,1746124255644,-450.0,0.00035616,11]
[359560376,1746124255654,-450.0,0.00035616,11]
[359560377,1746124255664,-450.0,0.00035616,11]
[359560378,1746124255674,-450.0,0.00035616,11]
[359560379,1746124255685,-450.0,0.00035616,11]
[359560380,1746124255694,-450.0,0.00035616,11]
[359560381,1746124255703,-450.0,0.00035616,11]
[359560382,1746124255713,-450.0,0.00035616,11]
[359560383,1746124255722,-450.0,0.00035616,11]
[359560384,1746124255732,-521.07,0.00035616,11]
[359560385,1746124255741,-730.83,0.00035616,11]
[359560386,1746124255751,-450.0,0.00035616,11]
[359560387,1746124255761,-599.7096465,0.00035616,11]
[359560388,1746124255770,-624.62,0.00035616,11]
[359560389,1746124255780,-450.0,0.00035616,11]
[359560390,1746124255790,-450.0,0.00035616,11]
[359560391,1746124255800,-450.0,0.00035616,11]
[359560392,1746124255810,-187.84575841,0.00035616,11]
[359560393,1746124255820,-450.0,0.00035616,11]
[359560394,1746124255829,-565.84455917,0.00035616,11]
[359560395,1746124255839,-605.93,0.00035616,11]
[359560396,1746124255848,-450.0,0.00035616,7]
[359560397,1746124255858,-450.0,0.00035616,11]
[359560398,1746124255867,-450.0,0.00035616,11]
[359560399,1746124255877,-450.0,0.00035616,11]
[359560400,1746124255886,-450.0,0.00035616,11]
[359560401,1746124255895,-450.0,0.00035616,11]
[359560402,1746124255905,-617.65,0.00035616,11]
[359560403,1746124255915,-552.07,0.00035616,11]
[359560404,1746124255925,-450.0,0.00035616,11]
[359560405,1746124255935,-450.0,0.00035616,11]
[359560406,1746124255945,-580.63763375,0.00035616,11]
[359560407,1746124255955,-450.0,0.00035616,11]
[359560408,1746124255965,-450.0,0.00035616,11]
[359560409,1746124255974,-222.18875776,0.00035616,11]
[359560410,1746124255984,-520.80288508,0.00035616,11]
[359560411,1746124255997,-450.0,0.00035616,11]
[359560412,1746124256007,-450.0,0.00035616,11]
[359560413,1746124256017,-450.0,0.00035616,11]
[359560414,1746124256026,-450.0,0.00035616,11]
[359560415,1746124256035,-1000.0,0.00035616,11]
[359560416,1746124256044,-508.82540069,0.00035616,11]
[359560417,1746124256053,-450.0,0.00035616,11]
[359560418,1746124256063,-450.0,0.00035616,11]
[359560419,1746124256072,-450.0,0.00035616,11]
[359560420,1746124256080,-775.39,0.00035616,11]
[359560421,1746124256089,-489.1,0.00035616,11]
[359560422,1746124256098,-450.0,0.00035616,11]
[359560423,1746124256107,-450.0,0.00035616,11]
[359560424,1746124256119,-450.0,0.00035616,11]
[359560425,1746124256128,-450.0,0.00035616,11]
[359560426,1746124256137,-518.73157857,0.00035616,11]
[359560427,1746124256150,-450.0,0.00035616,11]
[359560428,1746124256159,-539.35001019,0.00035616,11]
[359560429,1746124256168,-450.0,0.00035616,11]
[359560430,1746124256177,-450.0,0.00035616,7]
[359560431,1746124256186,-525.51015409,0.00035616,11]
[359560432,1746124256197,-458.53,0.00035616,11]
[359560433,1746124256206,-450.0,0.00035616,11]
[359560434,1746124256216,-450.0,0.00035616,11]
[359560435,1746124256225,-397.05253157,0.00035616,11]
[359560436,1746124256270,-52.94746843,0.00035616,11]
[359560437,1746124256280,-568.73356273,0.00035616,11]
[359560438,1746124256289,-450.0,0.00035616,11]
[359560439,1746124256299,-545.68,0.00035616,11]
[359560440,1746124256309,-450.0,0.00035616,11]
[359560441,1746124256319,-450.0,0.00035616,11]
[359560442,1746124256329,-450.0,0.00035616,11]
[359560443,1746124256339,-164.833706,0.00035616,11]
[359560444,1746124256348,-450.0,0.00035616,11]
[359560445,1746124256358,-450.0,0.00035616,11]
[359560446,1746124256367,-450.0,0.00035616,11]
[359560447,1746124256377,-269.022701,0.00035616,7]
[359560448,1746124256386,-269.022701,0.00035616,7]
[359560449,1746124256396,-451.40225295,0.00035616,11]
[359560450,1746124256406,-269.022701,0.00035616,7]
[359560451,1746124256415,-450.0,0.00035616,11]
[359560452,1746124256424,-269.022701,0.00035616,7]
[359560453,1746124256434,-450.0,0.00035616,11]
[359560454,1746124256443,-450.0,0.00035616,11]
[359560455,1746124256453,-527.12201752,0.00035616,11]
[359560456,1746124256462,-1985.81,0.00035616,11]
[359560457,1746124256471,-269.022701,0.00035616,7]
[359560458,1746124256480,-192.015861,0.00035616,11]
[359560459,1746124256490,-269.022701,0.00035616,7]
[359560460,1746124256499,-269.022701,0.00035616,7]
[359560461,1746124256508,-269.022701,0.00035616,7]
[359560462,1746124256518,-450.0,0.00035616,11]
[359560463,1746124256527,-450.0,0.00035616,11]
[359560464,1746124256536,-500.0,0.00035616,11]
[359560465,1746124256545,-500.0,0.00035616,11]
[359560466,1746124256555,-500.0,0.00035616,11]
[359560467,1746124256564,-287.5586945,0.00035616,11]
[359560468,1746124256573,-450.0,0.00035616,11]
[359560469,1746124256583,-481.96,0.00035616,11]
[359560470,1746124256593,-722.16,0.00035616,11]
[359560471,1746124256602,-679.5,0.00035616,11]
[359560472,1746124256611,-1000.0,0.00035616,60]
[359560473,1746124256621,-1047.26,0.00035616,11]
[359560474,1746124256630,-450.0,0.00035616,11]
[359560475,1746124256640,-450.0,0.00035616,11]
[359560476,1746124256649,-450.0,0.00035616,11]
[359560477,1746124256659,-450.0,0.00035616,11]
[359560478,1746124256669,-450.0,0.00035616,11]
[359560479,1746124256679,-450.0,0.00035616,11]
[359560480,1746124256688,-450.0,0.00035616,11]
[359560481,1746124256697,-450.0,0.00035616,11]
[359560482,1746124256707,-451.84,0.00035616,11]
[359560483,1746124256716,-450.0,0.00035616,11]
[359560484,1746124256727,-450.0,0.00035616,11]
[359560485,1746124256736,-450.0,0.00035616,11]
[359560486,1746124256745,-450.0,0.00035616,11]
[359560487,1746124256754,-450.0,0.00035616,11]
[359560488,1746124256764,-504.84128196,0.00035616,11]
[359560489,1746124256773,-450.0,0.00035616,11]
[359560490,1746124256783,-450.0,0.00035616,11]
[359560491,1746124256792,-479.66,0.00035616,11]
[359560492,1746124256803,-450.0,0.00035616,11]
[359560493,1746124256813,-537.22130242,0.00035616,11]
[359560494,1746124256823,-577.80495512,0.00035616,11]
[359560495,1746124256832,-450.0,0.00035616,11]
[359560496,1746124256842,-450.0,0.00035616,11]
[359560497,1746124256851,-479.41,0.00035616,11]
[359560498,1746124256861,-450.0,0.00035616,11]
[359560499,1746124256870,-710.63,0.00035616,11]
[359560500,1746124256879,-794.22,0.00035616,11]
[359560501,1746124256888,-450.0,0.00035616,11]
[359560502,1746124256898,-450.0,0.00035616,11]
[359560503,1746124256908,-548.16,0.00035616,11]
[359560504,1746124256918,-302.0707793,0.00035616,30]
[359560505,1746124256927,-450.0,0.00035616,11]
[359560506,1746124256936,-599.02976652,0.00035616,11]
[359560507,1746124256945,-515.3362637,0.00035616,11]
[359560508,1746124256956,-587.36,0.00035616,11]
[359560509,1746124256965,-450.0,0.00035616,11]
[359560510,1746124256974,-1611.79,0.00035616,11]
[359560511,1746124256984,-450.0,0.00035616,11]
[359560512,1746124256994,-322.44338776,0.00035616,11]
[359560513,1746124257004,-450.0,0.00035616,11]
[359560514,1746124257014,-509.25969777,0.00035616,11]
[359560515,1746124257023,-483.45,0.00035616,11]
[359560516,1746124257034,-450.0,0.00035616,11]
[359560517,1746124257043,-467.06,0.00035616,11]
[359560518,1746124257053,-997.2,0.00035616,11]
[359560519,1746124257063,-450.0,0.00035616,11]
[359560520,1746124257072,-450.0,0.00035616,11]
[359560521,1746124257082,-513.04209105,0.00035616,11]
[359560522,1746124257091,-450.0,0.00035616,11]
[359560523,1746124257101,-363.89531976,0.00035616,11]
[359560524,1746124257110,-450.0,0.00035616,11]
[359560525,1746124257124,-450.0,0.00035616,10]
[359560526,1746124257134,-450.0,0.00035616,11]
[359560527,1746124257144,-450.0,0.00035616,11]
[359560528,1746124257153,-450.0,0.00035616,11]
[359560529,1746124257164,-450.0,0.00035616,11]
[359560530,1746124257173,-450.0,0.00035616,11]
[359560531,1746124257183,-450.0,0.00035616,11]
[359560532,1746124257194,-450.0,0.00035616,11]
[359560533,1746124257204,-450.0,0.00035616,11]
[359560534,1746124257214,-587.84,0.00035616,11]
[359560535,1746124257223,-450.0,0.00035616,11]
[359560536,1746124257233,-450.0,0.00035616,11]
[359560537,1746124257242,-151.0,0.00035616,7]
[359560538,1746124257252,-151.0,0.00035616,7]
[359560539,1746124257261,-151.0,0.00035616,7]
[359560540,1746124257271,-450.0,0.00035616,11]
[359560541,1746124257280,-151.0,0.00035616,7]
[359560542,1746124257290,-778.85,0.00035616,11]
[359560543,1746124257299,-450.0,0.00035616,11]
[359560544,1746124257309,-509.43842121,0.00035616,11]
[359560545,1746124257319,-450.0,0.00035616,11]
[359560546,1746124257328,-450.0,0.00035616,11]
[359560547,1746124257336,-151.0,0.00035616,7]
[359560548,1746124257346,-1064.26,0.00035616,11]
[359560549,1746124257356,-530.72353365,0.00035616,11]
[359560550,1746124257366,-450.0,0.00035616,11]
[359560551,1746124257376,-151.0,0.00035616,7]
[359560552,1746124257385,-450.0,0.00035616,11]
[359560553,1746124257395,-280.696712,0.00035616,7]
[359560554,1746124257405,-450.0,0.00035616,11]
[359560555,1746124257415,-450.0,0.00035616,11]
[359560556,1746124257426,-457.32,0.00035616,11]
[359560557,1746124257436,-450.0,0.00035616,11]
[359560558,1746124257445,-450.0,0.00035616,11]
[359560559,1746124257455,-3209.94,0.00035616,11]
[359560560,1746124257464,-450.0,0.00035616,11]
[359560561,1746124257474,-450.0,0.00035616,11]
[359560562,1746124257485,-646.16,0.00035616,11]
[359560563,1746124257494,-450.0,0.00035616,11]
[359560564,1746124257505,-450.0,0.00035616,11]
[359560565,1746124257514,-517.99518865,0.00035616,11]
[359560566,1746124257524,-509.07073612,0.00035616,11]
[359560567,1746124257534,-450.0,0.00035616,11]
[359560568,1746124257544,-450.0,0.00035616,11]
[359560569,1746124257553,-450.0,0.00035616,11]
[359560570,1746124257563,-450.0,0.00035616,11]
[359560571,1746124257572,-519.38954674,0.00035616,11]
[359560572,1746124257582,-513.65342057,0.00035616,11]
[359560573,1746124257592,-735.46,0.00035616,11]
[359560574,1746124257602,-164.833705,0.00035616,11]
[359560575,1746124257611,-450.0,0.00035616,11]
[359560576,1746124257621,-450.0,0.00035616,11]
[359560577,1746124257630,-972.31,0.00035616,11]
[359560578,1746124257640,-450.0,0.00035616,11]
[359560579,1746124257650,-512.55589945,0.00035616,11]
[359560580,1746124257661,-502.65038562,0.00035616,11]
[359560581,1746124257670,-508.0021128,0.00035616,11]
[359560582,1746124257679,-512.00520581,0.00035616,11]
[359560583,1746124257689,-450.0,0.00035616,11]
[359560584,1746124257698,-450.0,0.00035616,11]
[359560585,1746124257708,-437.31148129,0.00035616,11]
[359560586,1746124257718,-582.19,0.00035616,11]
[359560587,1746124257727,-450.0,0.00035616,11]
[359560588,1746124257737,-450.0,0.00035616,11]
[359560589,1746124257747,-450.0,0.00035616,11]